fUSD/lending_fUSD_20250602
["ID","MTS","AMOUNT","RATE_DAILY","PERIOD"]
[363780710,1748869842065,-421.83608318,0.00019178,2]
[363780711,1748869842075,-420.0,0.00019178,2]
[363780712,1748869842085,-421.6593425,0.00019178,2]
[363780714,1748869842095,-420.0,0.00019178,2]
[363780716,1748869842105,-420.0,0.00019178,2]
[363780718,1748869842115,-420.0,0.00019178,2]
[363780738,1748869842310,-206.74725981,0.00019178,2]
[363780740,1748869842323,-426.77719843,0.00019178,2]
[363780742,1748869842334,-422.30956198,0.00019178,2]
[363780744,1748869842344,-420.0,0.00019178,2]
[363780746,1748869842355,-420.0,0.00019178,2]
[363780748,1748869842365,-420.0,0.00019178,2]
[363780749,1748869842375,-420.0,0.00019178,2]
[363780751,1748869842386,-420.0,0.00019178,2]
[363780753,1748869842396,-420.0,0.00019178,2]
[363780755,1748869842406,-417.12074529,0.00019178,2]
[363780757,1748869842416,-420.0,0.00019178,2]
[363780759,1748869842426,-420.0,0.00019178,2]
[363780761,1748869842436,-420.0,0.00019178,2]
[363780763,1748869842446,-420.0,0.00019178,2]
[363780765,1748869842456,-420.0,0.00019178,2]
[363780767,1748869842466,-421.33989667,0.00019178,2]
[363780770,1748869842476,-420.0,0.00019178,2]
[363780772,1748869842486,-420.0,0.00019178,2]
[363780774,1748869842496,-420.0,0.00019178,2]
[363780776,1748869842505,-425.61859977,0.00019178,2]
[363780778,1748869842515,-420.0,0.00019178,2]
[363780780,1748869842525,-420.0,0.00019178,2]
[363780783,1748869842535,-420.0,0.00019178,2]
[363780785,1748869842544,-420.0,0.00019178,2]
[363780787,1748869842554,-420.0,0.00019178,2]
[363780789,1748869842564,-420.0,0.00019178,2]
[363780791,1748869842574,-420.0,0.00019178,2]
[363780793,1748869842585,-433.96459146,0.00019178,2]
[363780797,1748869842596,-420.0,0.00019178,2]
[363780799,1748869842607,-420.0,0.00019178,2]
[363780801,1748869842617,-215.18,0.00019178,2]
[363780803,1748869842628,-420.0,0.00019178,2]
[363780805,1748869842638,-420.0,0.00019178,2]
[363780807,1748869842648,-420.0,0.00019178,2]
[363780809,1748869842658,-420.0,0.00019178,2]
[363780811,1748869842667,-420.0,0.00019178,2]
[363780813,1748869842677,-356.21,0.00019178,2]
[363780815,1748869842687,-420.0,0.00019178,2]
[363780817,1748869842697,-420.0,0.00019178,2]
[363780819,1748869842707,-420.0,0.00019178,2]
[363780821,1748869842716,-1178.71,0.00019178,2]
[363780823,1748869842726,-420.0,0.00019178,2]
[363780825,1748869842736,-1215.12,0.00019178,2]
[363780827,1748869842744,-430.57827415,0.00019178,2]
[363780829,1748869842752,-420.0,0.00019178,2]
[363780831,1748869842760,-656.62,0.00019178,2]
[363780833,1748869842769,-413.89464695,0.00019178,2]
[363780835,1748869842778,-420.0,0.00019178,2]
[363780836,1748869842788,-420.0,0.00019178,2]
[363780838,1748869842797,-420.0,0.00019178,2]
[363780840,1748869842806,-420.0,0.00019178,2]
[363780842,1748869842816,-420.0,0.00019178,2]
[363780844,1748869842825,-420.0,0.00019178,2]
[363780846,1748869842834,-164.0766811,0.00019178,2]
[363780848,1748869842843,-420.0,0.00019178,2]
[363780850,1748869842852,-420.0,0.00019178,2]
[363780852,1748869842861,-851.99,0.00019178,2]
[363780854,1748869842871,-695.29,0.00019178,2]
[363780856,1748869842881,-1352.67,0.00019178,2]
[363780858,1748869842891,-420.0,0.00019178,2]
[363780860,1748869842900,-420.0,0.00019178,2]
[363780862,1748869842910,-420.0,0.00019178,2]
[363780864,1748869842919,-15295.8,0.00019178,2]
[363780866,1748869842929,-420.0,0.00019178,2]
[363780868,1748869842938,-420.0,0.00019178,2]
[363780870,1748869842948,-420.0,0.00019178,2]
[363780872,1748869842958,-420.0,0.00019178,2]
[363780874,1748869842967,-420.0,0.00019178,2]
[363780876,1748869842977,-423.61576166,0.00019178,2]
[363780878,1748869842986,-425.19454987,0.00019178,2]
[363780880,1748869842995,-420.0,0.00019178,2]
[363780882,1748869843005,-420.0,0.00019178,2]
[363780884,1748869843015,-425.04681302,0.00019178,2]
[363780886,1748869843024,-420.0,0.00019178,2]
[363780888,1748869843033,-420.0,0.00019178,2]
[363780890,1748869843043,-420.0,0.00019178,2]
[363780892,1748869843053,-1073.37,0.00019178,2]
[363780894,1748869843063,-434.92790914,0.00019178,2]
[363780896,1748869843074,-276.34932782,0.00019178,2]
[363780898,1748869843084,-541.9,0.00019178,2]
[363780900,1748869843093,-704.81,0.00019178,2]
[363780902,1748869843103,-420.0,0.00019178,2]
[363780905,1748869843113,-420.0,0.00019178,2]
[363780907,1748869843123,-420.0,0.00019178,2]
[363780909,1748869843132,-420.0,0.00019178,2]
[363780911,1748869843141,-420.0,0.00019178,2]
[363780913,1748869843151,-420.0,0.00019178,2]
[363780915,1748869843160,-1021.91,0.00019178,2]
[363780917,1748869843170,-420.0,0.00019178,2]
[363780919,1748869843179,-1599.29,0.00019178,2]
[363780921,1748869843189,-420.0,0.00019178,2]
[363780923,1748869843200,-420.0,0.00019178,2]
[363780925,1748869843210,-420.0,0.00019178,2]
[363780927,1748869843220,-420.0,0.00019178,2]
[363780929,1748869843231,-462.74,0.00019178,2]
[363780931,1748869843248,-420.0,0.00019178,2]
[363780933,1748869843261,-505.66,0.00019178,2]
[363780935,1748869843270,-501.04949106,0.00019178,2]
[363780937,1748869843280,-4497.37,0.00019178,2]
[363780939,1748869843290,-420.0,0.00019178,2]
[363780941,1748869843299,-420.0,0.00019178,2]
[363780943,1748869843309,-420.0,0.00019178,2]
[363780945,1748869843319,-420.0,0.00019178,2]
[363780947,1748869843329,-425.90579324,0.00019178,2]
[363780949,1748869843340,-428.77768541,0.00019178,2]
[363780951,1748869843351,-420.0,0.00019178,2]
[363780953,1748869843360,-425.76098945,0.00019178,2]
[363780955,1748869843370,-560.71025987,0.00019178,2]
[363780957,1748869843380,-3829.57,0.00019178,2]
[363780959,1748869843390,-420.0,0.00019178,2]
[363780961,1748869843400,-420.0,0.00019178,2]
[363780963,1748869843411,-420.0,0.00019178,2]
[363780965,1748869843421,-504.06603757,0.00019178,2]
[363780967,1748869843431,-420.0,0.00019178,2]
[363780969,1748869843441,-420.0,0.00019178,2]
[363780971,1748869843452,-578.19,0.00019178,2]
[363780973,1748869843462,-420.0,0.00019178,2]
[363780975,1748869843472,-954.6,0.00019178,2]
[363780977,1748869843481,-913.0,0.00019178,2]
[363780979,1748869843491,-420.0,0.00019178,2]
[363780981,1748869843501,-420.0,0.00019178,2]
[363780983,1748869843511,-429.27297461,0.00019178,2]
[363780985,1748869843522,-526.69461084,0.00019178,2]
[363780987,1748869843531,-692.88,0.00019178,2]
[363780989,1748869843541,-3109.79,0.00019178,2]
[363780991,1748869843551,-420.0,0.00019178,2]
[363780993,1748869843561,-420.0,0.00019178,2]
[363780995,1748869843571,-420.0,0.00019178,2]
[363780997,1748869843581,-420.0,0.00019178,2]
[363780999,1748869843590,-420.0,0.00019178,2]
[363781001,1748869843600,-420.0,0.00019178,2]
[363781003,1748869843610,-420.0,0.00019178,2]
[363781005,1748869843620,-420.0,0.00019178,2]
[363781007,1748869843631,-427.30428244,0.00019178,2]
[363781009,1748869843641,-562.97,0.00019178,2]
[363781011,1748869843651,-420.0,0.00019178,2]
[363781013,1748869843661,-426.44404389,0.00019178,2]
[363781015,1748869843670,-420.0,0.00019178,2]
[363781017,1748869843680,-420.0,0.00019178,2]
[363781019,1748869843691,-273.21920171,0.00019178,2]
[363781021,1748869843701,-352.65136954,0.00019178,2]
[363781023,1748869843711,-420.0,0.00019178,2]
[363781025,1748869843723,-610.85,0.00019178,2]
[363781027,1748869843733,-858.69,0.00019178,2]
[363781029,1748869843743,-420.0,0.00019178,2]
[363781031,1748869843753,-420.0,0.00019178,2]
[363781034,1748869843764,-500.0,0.00019178,2]
[363781036,1748869843774,-447.64117962,0.00019178,2]
[363781038,1748869843783,-420.0,0.00019178,2]
[363781040,1748869843794,-427.04349981,0.00019178,2]
[363781042,1748869843805,-420.0,0.00019178,2]
[363781044,1748869843815,-420.0,0.00019178,2]
[363781046,1748869843825,-1626.62,0.00019178,2]
[363781048,1748869843835,-420.0,0.00019178,2]
[363781050,1748869843845,-420.0,0.00019178,2]
[363781052,1748869843855,-726.22,0.00019178,2]
[363781054,1748869843867,-576.86,0.00019178,2]
[363781056,1748869843879,-420.0,0.00019178,2]
[363781058,1748869843889,-420.0,0.00019178,2]
[363781060,1748869843900,-420.0,0.00019178,2]
[363781062,1748869843911,-420.0,0.00019178,2]
[363781064,1748869843921,-420.0,0.00019178,2]
[363781066,1748869843931,-1200.64,0.00019178,2]
[363781069,1748869843942,-477.47,0.00019178,2]
[363781070,1748869843951,-420.0,0.00019178,2]
[363781072,1748869843962,-420.0,0.00019178,2]
[363781074,1748869843972,-420.0,0.00019178,2]
[363781076,1748869843982,-420.0,0.00019178,2]
[363781078,1748869843991,-505.97,0.00019178,2]
[363781080,1748869844001,-420.0,0.00019178,2]
[363781083,1748869844011,-652.33,0.00019178,2]
[363781085,1748869844020,-420.0,0.00019178,2]
[363781087,1748869844031,-420.0,0.00019178,2]
[363781089,1748869844041,-362.26047882,0.00019178,2]
[363781091,1748869844052,-420.0,0.00019178,2]
[363781093,1748869844063,-472.44197213,0.00019178,2]
[363781095,1748869844073,-429.206513,0.00019178,2]
[363781097,1748869844083,-420.0,0.00019178,2]
[363781099,1748869844094,-432.9081962,0.00019178,2]
[363781101,1748869844104,-420.0,0.00019178,2]
[363781103,1748869844115,-432.07321409,0.00019178,2]
[363781105,1748869844125,-420.0,0.00019178,2]
[363781107,1748869844135,-420.0,0.00019178,2]
[363781109,1748869844145,-422.75175264,0.00019178,2]
[363781111,1748869844156,-1616.15,0.00019178,2]
[363781113,1748869844167,-420.0,0.00019178,2]
[363781115,1748869844176,-420.0,0.00019178,2]
[363781117,1748869844186,-420.0,0.00019178,2]
[363781120,1748869844197,-420.0,0.00019178,2]
[363781122,1748869844207,-420.0,0.00019178,2]
[363781124,1748869844217,-424.13224569,0.00019178,2]
[363781126,1748869844227,-420.0,0.00019178,2]
[363781128,1748869844237,-420.0,0.00019178,2]
[363781130,1748869844250,-420.0,0.00019178,2]
[363781132,1748869844260,-420.0,0.00019178,2]
[363781134,1748869844269,-420.0,0.00019178,2]
[363781136,1748869844281,-420.0,0.00019178,2]
[363781138,1748869844291,-420.0,0.00019178,2]
[363781141,1748869844302,-1618.04,0.00019178,2]
[363781144,1748869844312,-326.07922905,0.00019178,2]
[363781148,1748869844322,-500.0,0.00019178,2]
[363781151,1748869844332,-420.0,0.00019178,2]
[363781154,1748869844342,-442.27,0.00019178,2]
[363781157,1748869844352,-420.0,0.00019178,2]
[363781160,1748869844363,-457.27,0.00019178,2]
[363781162,1748869844372,-420.0,0.00019178,2]
[363781165,1748869844383,-555.03724278,0.00019178,2]
[363781168,1748869844393,-420.0,0.00019178,2]
[363781170,1748869844402,-420.0,0.00019178,2]
[363781172,1748869844412,-423.99017779,0.00019178,2]
[363781174,1748869844422,-420.0,0.00019178,2]
[363781176,1748869844432,-532.26,0.00019178,2]
[363781178,1748869844442,-429.5,0.00019178,2]
[363781180,1748869844452,-552.11376907,0.00019178,2]
[363781182,1748869844462,-282.67211699,0.00019178,2]
[363781184,1748869844473,-420.0,0.00019178,2]
[363781186,1748869844482,-500.0,0.00019178,2]
[363781188,1748869844492,-2136.99,0.00019178,2]
[363781190,1748869844502,-1663.46,0.00019178,2]
[363781192,1748869844511,-425.89826426,0.00019178,2]
[363781194,1748869844521,-530.76,0.00019178,2]
[363781196,1748869844531,-2689.83,0.00019178,2]
[363781198,1748869844541,-425.51235583,0.00019178,2]
[363781201,1748869844551,-420.0,0.00019178,2]
[363781203,1748869844561,-1284.29,0.00019178,2]
[363781205,1748869844571,-1064.4,0.00019178,2]
[363781207,1748869844581,-420.0,0.00019178,2]
[363781209,1748869844591,-420.0,0.00019178,2]
[363781211,1748869844600,-420.0,0.00019178,2]
[363781213,1748869844610,-2159.43,0.00019178,2]
[363781215,1748869844619,-420.0,0.00019178,2]
[363781217,1748869844629,-420.0,0.00019178,2]
[363781219,1748869844639,-420.0,0.00019178,2]
[363781221,1748869844649,-420.0,0.00019178,2]
[363781223,1748869844659,-525.32,0.00019178,2]
[363781225,1748869844669,-420.0,0.00019178,2]
[363781227,1748869844678,-420.0,0.00019178,2]
[363781229,1748869844688,-420.0,0.00019178,2]
[363781231,1748869844698,-420.0,0.00019178,2]
[363781233,1748869844708,-1215.95,0.00019178,2]
[363781234,1748869844718,-420.0,0.00019178,2]
[363781235,1748869844727,-773.91,0.00019178,2]
[363781236,1748869844736,-1710.28,0.00019178,2]
[363781237,1748869844746,-420.0,0.00019178,2]
[363781238,1748869844755,-420.0,0.00019178,2]
[363781239,1748869844765,-420.0,0.00019178,2]
[363781241,1748869844821,-1218.64,0.00019178,2]
[363781243,1748869844830,-420.0,0.00019178,2]
[363781245,1748869844841,-420.0,0.00019178,2]
[363781247,1748869844851,-420.0,0.00019178,2]
[363781249,1748869844861,-423.24741984,0.00019178,2]
[363781251,1748869844870,-420.0,0.00019178,2]
[363781253,1748869844880,-429.26289191,0.00019178,2]
[363781255,1748869844890,-420.0,0.00019178,2]
[363781258,1748869844899,-420.0,0.00019178,2]
[363781259,1748869844909,-1320.76,0.00019178,2]
[363781261,1748869844918,-420.0,0.00019178,2]
[363781263,1748869844928,-420.0,0.00019178,2]
[363781266,1748869844938,-420.0,0.00019178,2]
[363781267,1748869844948,-420.0,0.00019178,2]
[363781270,1748869844958,-314.27774661,0.00019178,2]
[363781272,1748869844968,-420.0,0.00019178,2]
[363781273,1748869844977,-420.0,0.00019178,2]
[363781275,1748869844987,-8279.57,0.00019178,2]
[363781277,1748869844996,-420.0,0.00019178,2]
[363781279,1748869845005,-420.0,0.00019178,2]
[363781281,1748869845015,-420.0,0.00019178,2]
[363781283,1748869845024,-420.0,0.00019178,2]
[363781285,1748869845033,-420.0,0.00019178,2]
[363781287,1748869845042,-420.0,0.00019178,2]
[363781289,1748869845052,-475.99358882,0.00019178,2]
[363781291,1748869845061,-420.0,0.00019178,2]
[363781293,1748869845071,-420.0,0.00019178,2]
[363781295,1748869845080,-420.0,0.00019178,2]
[363781297,1748869845090,-534.15152915,0.00019178,2]
[363781299,1748869845099,-489.65,0.00019178,2]
[363781301,1748869845108,-420.0,0.00019178,2]
[363781303,1748869845118,-420.0,0.00019178,2]
[363781305,1748869845127,-420.0,0.00019178,2]
[363781307,1748869845137,-401.00169821,0.00019178,2]
[363781309,1748869845146,-420.0,0.00019178,2]
[363781311,1748869845157,-420.0,0.00019178,2]
[363781313,1748869845167,-420.0,0.00019178,2]
[363781315,1748869845176,-420.0,0.00019178,2]
[363781317,1748869845186,-420.0,0.00019178,2]
[363781319,1748869845196,-618.96,0.00019178,2]
[363781321,1748869845205,-420.0,0.00019178,2]
[363781323,1748869845215,-420.0,0.00019178,2]
[363781325,1748869845226,-420.0,0.00019178,2]
[363781327,1748869845235,-420.0,0.00019178,2]
[363781329,1748869845247,-394.74719168,0.00019178,2]
[363781331,1748869845257,-420.0,0.00019178,2]
[363781333,1748869845267,-420.0,0.00019178,2]
[363781335,1748869845276,-420.0,0.00019178,2]
[363781337,1748869845287,-544.11,0.00019178,2]
[363781339,1748869845297,-420.0,0.00019178,2]
[363781341,1748869845306,-588.0,0.00019178,2]
[363781343,1748869845316,-635.69,0.00019178,2]
[363781344,1748869845326,-427.39476671,0.00019178,2]
[363781346,1748869845336,-420.0,0.00019178,2]
[363781348,1748869845345,-420.0,0.00019178,2]
[363781350,1748869845355,-420.0,0.00019178,2]
[363781352,1748869845365,-533.13,0.00019178,2]
[363781354,1748869845375,-420.0,0.00019178,2]
[363781356,1748869845384,-422.34055348,0.00019178,2]
[363781358,1748869845393,-420.0,0.00019178,2]
[363781360,1748869845403,-898.61,0.00019178,2]
[363781362,1748869845413,-420.0,0.00019178,2]
[363781364,1748869845422,-196.31159811,0.00019215,2]
[363781366,1748869845432,-1561.93280626,0.00019215,2]
[363781368,1748869845443,-500.0,0.00019312,2]
[363781370,1748869845452,-500.0,0.00019312,2]
[363781372,1748869845461,-500.0,0.00019312,2]
[363781374,1748869845470,-500.0,0.00019312,2]
[363781376,1748869845479,-500.0,0.00019312,2]
[363781378,1748869845489,-500.0,0.00019312,2]
[363781380,1748869845499,-500.0,0.00019312,2]
[363781382,1748869845509,-500.0,0.00019312,2]
[363781384,1748869845519,-500.0,0.00019312,2]
[363781386,1748869845528,-500.0,0.00019312,2]
[363781388,1748869845538,-500.0,0.00019312,2]
[363781390,1748869845547,-500.0,0.00019312,2]
[363781392,1748869845557,-500.0,0.00019312,2]
[363781394,1748869845566,-500.0,0.00019312,2]
[363781396,1748869845577,-358.86506842,0.00019312,2]
[363781398,1748869845587,-500.0,0.00019312,2]
[363781400,1748869845597,-500.0,0.00019312,2]
[363781402,1748869845608,-500.0,0.00019312,2]
[363781404,1748869845617,-500.0,0.00019312,2]
[363781406,1748869845628,-500.0,0.00019312,2]
[363781408,1748869845637,-500.0,0.00019312,2]
[363781410,1748869845647,-500.0,0.00019312,2]
[363781412,1748869845657,-500.0,0.00019312,2]
[363781414,1748869845666,-172.02771644,0.00019312,2]
[363781415,1748869845676,-500.0,0.00019312,2]
[363781418,1748869845685,-500.0,0.00019312,2]
[363781420,1748869845697,-500.0,0.00019312,2]
[363781422,1748869845708,-500.0,0.00019312,2]
[363781424,1748869845717,-500.0,0.00019312,2]
[363781426,1748869845727,-500.0,0.00019312,2]
[363781428,1748869845736,-500.0,0.00019312,2]
[363781430,1748869845745,-500.0,0.00019312,2]
[363781431,1748869845755,-500.0,0.00019312,2]
[363781433,1748869845765,-500.0,0.00019312,2]
[363781435,1748869845774,-500.0,0.00019312,2]
[363781437,1748869845784,-500.0,0.00019312,2]
[363781439,1748869845793,-500.0,0.00019312,2]
[363781441,1748869845803,-500.0,0.00019312,2]
[363781443,1748869845813,-500.0,0.00019312,2]
[363781445,1748869845822,-500.0,0.00019312,2]
[363781447,1748869845832,-500.0,0.00019312,2]
[363781449,1748869845843,-500.0,0.00019312,2]
[363781451,1748869845853,-500.0,0.00019312,2]
[363781453,1748869845863,-500.0,0.00019312,2]
[363781455,1748869845873,-500.0,0.00019312,2]
[363781457,1748869845882,-500.0,0.00019312,2]
[363781459,1748869845892,-500.0,0.00019312,2]
[363781461,1748869845902,-500.0,0.00019312,2]
[363781463,1748869845912,-500.0,0.00019312,2]
[363781465,1748869845922,-500.0,0.00019312,2]
[363781467,1748869845931,-500.0,0.00019312,2]
[363781469,1748869845941,-500.0,0.00019312,2]
[363781471,1748869845952,-500.0,0.00019312,2]
[363781473,1748869845962,-500.0,0.00019312,2]
[363781475,1748869845971,-500.0,0.00019312,2]
[363781477,1748869845981,-500.0,0.00019312,2]
[363781479,1748869845991,-500.0,0.00019312,2]
[363781481,1748869846000,-500.0,0.00019312,2]
[363781483,1748869846010,-500.0,0.00019314,2]
[363781485,1748869846019,-500.0,0.00019314,2]
[363781487,1748869846030,-500.0,0.00019314,2]
[363781489,1748869846039,-500.0,0.00019314,2]
[363781491,1748869846049,-444.47,0.00019315,2]
[363781493,1748869846059,-479.28,0.00019315,2]
[363781495,1748869846069,-420.0,0.00019315,2]
[363781497,1748869846079,-420.0,0.00019315,2]
[363781499,1748869846088,-420.0,0.00019315,2]
[363781501,1748869846098,-551.06641486,0.00019315,2]
[363781503,1748869846108,-420.0,0.00019315,2]
[363781505,1748869846118,-420.0,0.00019315,2]
[363781507,1748869846128,-420.0,0.00019315,2]
[363781509,1748869846138,-180.85006672,0.00019315,2]
[363781511,1748869846148,-420.0,0.00019315,2]
[363781513,1748869846158,-2140.392003,0.00019315,2]
[363781515,1748869846168,-448.9,0.00019315,2]
[363781517,1748869846177,-420.0,0.00019315,2]
[363781519,1748869846187,-420.0,0.00019315,2]
[363781521,1748869846197,-420.0,0.00019315,2]
[363781523,1748869846206,-2003.281763,0.00019315,2]
[363781525,1748869846218,-198.331608,0.00019315,2]
[363781527,1748869846228,-420.0,0.00019315,2]
[363781529,1748869846239,-420.0,0.00019315,2]
[363781531,1748869846250,-420.0,0.00019315,2]
[363781533,1748869846261,-420.0,0.00019315,2]
[363781535,1748869846272,-420.0,0.00019315,2]
[363781537,1748869846283,-420.0,0.00019315,2]
[363781539,1748869846292,-420.0,0.00019315,2]
[363781541,1748869846302,-420.0,0.00019315,2]
[363781543,1748869846311,-420.0,0.00019315,2]
[363781545,1748869846323,-420.0,0.00019315,2]
[363781547,1748869846333,-178.946867,0.00019315,2]
[363781549,1748869846343,-420.0,0.00019315,2]
[363781551,1748869846352,-420.0,0.00019315,2]
[363781553,1748869846362,-420.0,0.00019315,2]
[363781555,1748869846372,-420.0,0.00019315,2]
[363781557,1748869846383,-420.0,0.00019315,2]
[363781559,1748869846393,-420.0,0.00019315,2]
[363781561,1748869846403,-420.0,0.00019315,2]
[363781563,1748869846413,-420.0,0.00019315,2]
[363781565,1748869846422,-420.0,0.00019315,2]
[363781567,1748869846431,-462.46514663,0.00019315,2]
[363781569,1748869846441,-420.0,0.00019315,2]
[363781571,1748869846450,-420.0,0.00019315,2]
[363781573,1748869846460,-420.0,0.00019315,2]
[363781575,1748869846470,-455.25491381,0.00019315,2]
[363781577,1748869846480,-420.0,0.00019315,2]
[363781579,1748869846490,-420.0,0.00019315,2]
[363781581,1748869846499,-420.0,0.00019315,2]
[363781583,1748869846508,-233.34,0.00019315,2]
[363781585,1748869846517,-420.0,0.00019315,2]
[363781587,1748869846527,-420.0,0.00019315,2]
[363781589,1748869846535,-468.04,0.00019315,2]
[363781591,1748869846545,-420.0,0.00019315,2]
[363781592,1748869846554,-444.98,0.00019315,2]
[363781594,1748869846567,-539.71625004,0.00019315,2]
[363781596,1748869846576,-420.0,0.00019315,2]
[363781598,1748869846585,-420.0,0.00019315,2]
[363781600,1748869846595,-420.0,0.00019315,2]
[363781602,1748869846603,-420.0,0.00019315,2]
[363781604,1748869846612,-420.0,0.00019315,2]
[363781606,1748869846621,-420.0,0.00019315,2]
[363781608,1748869846631,-420.0,0.00019315,2]
[363781610,1748869846640,-420.0,0.00019315,2]
[363781613,1748869846650,-420.0,0.00019315,2]
[363781616,1748869846659,-420.0,0.00019315,2]
[363781619,1748869846668,-450.84514838,0.00019315,2]
[363781621,1748869846677,-420.0,0.00019315,2]
[363781623,1748869846686,-420.0,0.00019315,2]
[363781625,1748869846696,-420.0,0.00019315,2]
[363781627,1748869846704,-389.51217895,0.00019315,2]
[363781629,1748869846713,-420.0,0.00019315,2]
[363781632,1748869846723,-420.0,0.00019315,2]
[363781634,1748869846732,-420.0,0.00019315,2]
[363781636,1748869846741,-420.0,0.00019315,2]
[363781638,1748869846751,-420.0,0.00019315,2]
[363781640,1748869846760,-420.0,0.00019315,2]
[363781642,1748869846768,-420.0,0.00019315,2]
[363781644,1748869846777,-420.0,0.00019315,2]
[363781646,1748869846786,-420.0,0.00019315,2]
[363781647,1748869846795,-420.0,0.00019315,2]
[363781649,1748869846802,-420.0,0.00019315,2]
[363781651,1748869846810,-420.0,0.00019315,2]
[363781653,1748869846818,-420.0,0.00019315,2]
[363781655,1748869846825,-420.0,0.00019315,2]
[363781657,1748869846833,-420.0,0.00019315,2]
[363781659,1748869846842,-336.6243349,0.00019315,2]
[363781661,1748869846850,-420.0,0.00019315,2]
[363781663,1748869846857,-420.0,0.00019315,2]
[363781665,1748869846865,-420.0,0.00019315,2]
[363781667,1748869846873,-420.0,0.00019315,2]
[363781669,1748869846880,-420.0,0.00019315,2]
[363781671,1748869846888,-420.0,0.00019315,2]
[363781673,1748869846896,-420.0,0.00019315,2]
[363781675,1748869846904,-420.0,0.00019315,2]
[363781677,1748869846912,-420.0,0.00019315,2]
[363781679,1748869846921,-420.0,0.00019315,2]
[363781680,1748869846927,-420.0,0.00019315,2]
[363781683,1748869846937,-420.0,0.00019315,2]
[363781685,1748869846945,-204.10322113,0.00019315,2]
[363781687,1748869846953,-420.0,0.00019315,2]
[363781689,1748869846960,-420.0,0.00019315,2]
[363781691,1748869846968,-284.78,0.00019315,2]
[363781693,1748869846976,-420.0,0.00019315,2]
[363781695,1748869846983,-420.0,0.00019315,2]
[363781697,1748869846992,-413.97,0.00019315,2]
[363781699,1748869847000,-1178.71,0.00019315,2]
[363781701,1748869847008,-1215.12,0.00019315,2]
[363781703,1748869847016,-568.67626722,0.00019315,2]
[363781705,1748869847024,-656.62,0.00019315,2]
[363781707,1748869847033,-420.0,0.00019315,2]
[363781709,1748869847040,-420.0,0.00019315,2]
[363781711,1748869847049,-420.0,0.00019315,2]
[363781713,1748869847059,-420.0,0.00019315,2]
[363781715,1748869847069,-420.0,0.00019315,2]
[363781717,1748869847079,-420.0,0.00019315,2]
[363781719,1748869847089,-851.99,0.00019315,2]
[363781721,1748869847098,-695.29,0.00019315,2]
[363781723,1748869847107,-1352.67,0.00019315,2]
[363781725,1748869847117,-420.0,0.00019315,2]
[363781727,1748869847127,-15295.8,0.00019315,2]
[363781729,1748869847136,-420.0,0.00019315,2]
[363781731,1748869847146,-420.0,0.00019315,2]
[363781732,1748869847156,-420.0,0.00019315,2]
[363781733,1748869847165,-420.0,0.00019315,2]